[Event "94th FRA-ch Open B 2019"]
[Site "Chartres"]
[Date "2019.08.22"]
[Round "6.4"]
[White "Antoine, Jean-Luc"]
[Black "Fretel, Liza"]
[Result "1-0"]
[ECO "A36"]
[WhiteElo "1959"]
[BlackElo "1859"]
[Annotator "NA"]
[PlyCount "79"]
[EventDate "2019.08.17"]
[EventType "swiss"]
[EventCountry "FRA"]
[SourceTitle "playchess.com"]
[Source "ChessBase"]
[SourceQuality "1"]
[TimeControl "40/5400+30:1800+30"]

1. c4 {[%emt 0:00:00]} c5 {[%emt 0:00:00]} 2. Nc3 {[%emt 0:00:00]} Nc6 {[%emt 0:00:08]} 3. g3 {[%emt 0:00:01]} e6 {[%emt 0:00:54]} 4. Bg2 {[%emt 0:00:20]} Nge7 {[%emt 0:00:21]} 5. d3 {[%emt 0:05:04]} d5 {[%emt 0:00:32]} 6. Bd2 {[%emt 0:01:53]} d4 {[%emt 0:00:39]} 7. Na4 {[%emt 0:03:51]} Qd6 {[%emt 0:02:50]} 8. e4 {[%emt 0:05:45]} e5 {[%emt 0:04:01]} 9. f4 {[%emt 0:02:02]} g6 {[%emt 0:00:25]} 10. Nf3 {[%emt 0:03:17]} Bg7 {[%emt 0:01:17]} 11. O-O {[%emt 0:00:15]} O-O {[%emt 0:02:11]} 12. a3 {[%emt 0:02:53]} f5 {[%emt 0:03:33]} 13. fxe5 {[%emt 0:03:49]} Nxe5 {[%emt 0:02:16]} 14. Nxe5 {[%emt 0:05:01]} Bxe5 {[%emt 0:00:06]} 15. b4 {[%emt 0:00:55]} cxb4 {[%emt 0:02:05]} 16. axb4 {[%emt 0:00:51]} Rb8 {[%emt 0:02:39]} 17. Qe2 {[%emt 0:09:27]} Bd7 {[%emt 0:04:49]} 18. Nc5 {[%emt 0:01:02]} Nc6 {[%emt 0:01:12]} 19. Nxd7 {[%emt 0:01:06]} Qxd7 {[%emt 0:00:11]} 20. exf5 {[%emt 0:03:41]} Rbe8 {[%emt 0:04:47]} 21. fxg6 {[%emt 0:02:00]} Rxf1+ {[%emt 0:00:23]} 22. Qxf1 {[%emt 0:04:37]} hxg6 {[%emt 0:00:11]} 23. b5 {[%emt 0:00:49]} Nd8 {[%emt 0:01:07]} 24. Rxa7 {[%emt 0:03:10]} Kg7 {[%emt 0:00:37]} 25. Qf3 {[%emt 0:03:25]} Qe7 {[%emt 0:04:09]} 26. Ra1 {[%emt 0:02:47]} b6 {[%emt 0:03:36]} 27. Rf1 {[%emt 0:00:37]} Rh8 {[%emt 0:02:23]} 28. Qg4 {[%emt 0:01:58]} Bf6 {[%emt 0:04:35]} 29. Re1 {[%emt 0:02:43]} Qf7 {[%emt 0:03:08]} 30. Bd5 {[%emt 0:00:19]} Qc7 {[%emt 0:00:42]} 31. Bf4 {[%emt 0:01:24]} Qa7 {[%emt 0:00:21]} 32. Be4 {[%emt 0:02:10]} Qf7 {[%emt 0:00:26]} 33. Ra1 {[%emt 0:00:59]} Re8 {[%emt 0:02:56]} 34. Bd2 {[%emt 0:09:53]} Re7 {[%emt 0:04:06]} 35. h4 {[%emt 0:02:43]} Re5 {[%emt 0:02:23]} 36. Ra7 {[%emt 0:04:53]} Qxa7 {[%emt 0:02:46]} 37. Qxg6+ {[%emt 0:00:15]} Kf8 {[%emt 0:00:10]} 38. Qxf6+ {[%emt 0:00:26]} Nf7 {[%emt 0:00:13]} 39. Bh6+ {[%emt 0:01:01]} Ke8 {[%emt 0:00:05]} 40. Bc6+ {[%emt 0:00:13]} 1-0

[Event "94th FRA-ch Open B 2019"]
[Site "Chartres"]
[Date "2019.08.22"]
[Round "6.5"]
[White "Ragneau, Freddy"]
[Black "Le Solleu, Guillaume"]
[Result "1-0"]
[ECO "B47"]
[WhiteElo "1814"]
[BlackElo "1944"]
[Annotator "NA"]
[PlyCount "107"]
[EventDate "2019.08.17"]
[EventType "swiss"]
[EventCountry "FRA"]
[SourceTitle "playchess.com"]
[Source "ChessBase"]
[SourceQuality "1"]
[TimeControl "40/5400+30:1800+30"]

1. e4 {[%emt 0:00:00]} c5 {[%emt 0:00:00]} 2. Nf3 {[%emt 0:00:00]} e6 {[%emt 0:00:00]} 3. a3 {[%emt 0:00:03]} a6 {[%emt 0:00:00]} 4. d4 {[%emt 0:00:37]} cxd4 {[%emt 0:00:10]} 5. Nxd4 {[%emt 0:00:17]} Nf6 {[%emt 0:01:37]} 6. Nc3 {[%emt 0:00:37]} Qc7 {[%emt 0:02:18]} 7. Be2 {[%emt 0:06:11]} Nc6 {[%emt 0:09:03]} 8. O-O {[%emt 0:08:59]} Nxd4 {[%emt 0:04:53]} 9. Qxd4 {[%emt 0:02:39]} Bd6 {[%emt 0:01:22]} 10. h3 {[%emt 0:09:12]} Bc5 {[%emt 0:07:22]} 11. Qd3 {[%emt 0:06:19]} b5 {[%emt 0:05:44]} 12. Be3 {[%emt 0:07:53]} Bxe3 {[%emt 0:02:44]} 13. Qxe3 {[%emt 0:00:27]} Bb7 {[%emt 0:10:10]} 14. Rfd1 {[%emt 0:08:29]} O-O {[%emt 0:02:55]} 15. Rac1 {[%emt 0:11:55]} d6 {[%emt 0:06:24]} 16. Rd2 {[%emt 0:06:11]} Rfd8 {[%emt 0:03:56]} 17. Rcd1 {[%emt 0:00:41]} d5 {[%emt 0:04:24]} 18. e5 {[%emt 0:08:33]} Nd7 {[%emt 0:00:30]} 19. f4 {[%emt 0:00:36]} Rac8 {[%emt 0:14:15]} 20. Na2 {[%emt 0:03:10]} Qc5 {[%emt 0:01:24]} 21. Qxc5 {[%emt 0:00:59]} Rxc5 {[%emt 0:02:30]} 22. c3 {[%emt 0:00:52]} Nb6 {[%emt 0:03:49]} 23. Bf3 {[%emt 0:02:55]} Nc4 {[%emt 0:01:10]} 24. Re2 {[%emt 0:00:23]} Rcc8 {[%emt 0:01:30]} 25. Nc1 {[%emt 0:00:56]} a5 {[%emt 0:01:54]} 26. Nb3 {[%emt 0:02:45]} Ba6 {[%emt 0:00:24]} 27. Ra1 {[%emt 0:03:09]} Rb8 {[%emt 0:01:38]} 28. Nd4 {[%emt 0:00:25]} Rdc8 {[%emt 0:00:13]} 29. f5 {[%emt 0:00:36]} Re8 {[%emt 0:04:55]} 30. fxe6 {[%emt 0:01:21]} fxe6 {[%emt 0:00:24]} 31. Bg4 {[%emt 0:00:38]} Bc8 {[%emt 0:01:50]} 32. b3 {[%emt 0:01:19]} Nb6 {[%emt 0:00:08]} 33. Nxb5 {[%emt 0:03:07]} Ba6 {[%emt 0:00:46]} 34. a4 {[%emt 0:00:17]} Nd7 {[%emt 0:02:08]} 35. c4 {[%emt 0:00:16]} dxc4 {[%emt 0:01:19]} 36. bxc4 {[%emt 0:01:41]} Rb6 {[%emt 0:01:48]} 37. Rd1 {[%emt 0:02:04]} Bxb5 {[%emt 0:02:00]} 38. cxb5 {[%emt 0:00:27]} Nc5 {[%emt 0:00:14]} 39. Rd4 {[%emt 0:01:10]} Kf7 {[%emt 0:00:48]} 40. Rc2 {[%emt 0:00:27]} Nxa4 {[%emt 0:00:43]} 41. Rxa4 {[%emt 0:31:05]} Rxb5 {[%emt 0:30:09]} 42. Rc7+ {[%emt 0:00:00]} Kg6 {[%emt 0:00:00]} 43. Bf3 {[%emt 0:00:00]} Rxe5 {[%emt 0:00:00]} 44. Rg4+ {[%emt 0:00:00]} Kf6 {[%emt 0:00:00]} 45. Rgxg7 {[%emt 0:00:00]} Re1+ {[%emt 0:00:00]} 46. Kf2 {[%emt 0:00:00]} Ra1 {[%emt 0:00:00]} 47. Rcf7+ {[%emt 0:00:00]} Ke5 {[%emt 0:00:00]} 48. Rxh7 {[%emt 0:00:00]} a4 {[%emt 0:00:00]} 49. Ra7 {[%emt 0:00:00]} Rb8 {[%emt 0:00:00]} 50. Ra5+ {[%emt 0:00:00]} Kd6 {[%emt 0:00:00]} 51. Ra6+ {[%emt 0:00:00]} Kc5 {[%emt 0:00:00]} 52. Rh5+ {[%emt 0:00:00]} Kb4 {[%emt 0:00:00]} 53. Rh4+ {[%emt 0:00:00]} Kb3 {[%emt 0:00:00]} 54. Rhxa4 {[%emt 0:00:00]} 1-0

[Event "94th FRA-ch Open B 2019"]
[Site "Chartres"]
[Date "2019.08.22"]
[Round "6.6"]
[White "Navrotescu, Vlad-Andrei"]
[Black "Martin, Axel"]
[Result "1-0"]
[ECO "D00"]
[WhiteElo "1943"]
[BlackElo "1998"]
[Annotator "NA"]
[PlyCount "85"]
[EventDate "2019.08.17"]
[EventType "swiss"]
[EventCountry "FRA"]
[SourceTitle "playchess.com"]
[Source "ChessBase"]
[SourceQuality "1"]
[TimeControl "40/5400+30:1800+30"]

1. d4 {[%emt 0:00:00]} d5 {[%emt 0:00:00]} 2. Bf4 {[%emt 0:00:00]} Nf6 {[%emt 0:00:00]} 3. e3 {[%emt 0:00:00]} c5 {[%emt 0:00:00]} 4. c3 {[%emt 0:00:16]} Nc6 {[%emt 0:00:00]} 5. Nd2 {[%emt 0:00:08]} e6 {[%emt 0:00:00]} 6. Bd3 {[%emt 0:01:23]} Bd6 {[%emt 0:00:15]} 7. Bg3 {[%emt 0:00:09]} e5 {[%emt 0:02:12]} 8. dxc5 {[%emt 0:07:35]} Bxc5 {[%emt 0:00:09]} 9. Bb5 {[%emt 0:00:11]} Qe7 {[%emt 0:04:37]} 10. Ngf3 {[%emt 0:08:18]} Bd6 {[%emt 0:00:30]} 11. O-O {[%emt 0:00:30]} O-O {[%emt 0:00:30]} 12. c4 {[%emt 0:00:30]} a6 {[%emt 0:00:30]} 13. Ba4 {[%emt 0:00:30]} e4 {[%emt 0:00:30]} 14. cxd5 {[%emt 0:00:30]} exf3 {[%emt 0:00:30]} 15. dxc6 {[%emt 0:00:30]} fxg2 {[%emt 0:00:30]} 16. Kxg2 {[%emt 0:00:30]} Bxg3 {[%emt 0:00:30]} 17. hxg3 {[%emt 0:28:40]} Qe6 {[%emt 0:20:24]} 18. Qf3 {[%emt 0:00:30]} Qh3+ {[%emt 0:00:30]} 19. Kg1 {[%emt 0:00:30]} bxc6 {[%emt 0:00:30]} 20. Bxc6 {[%emt 0:01:07]} Rb8 {[%emt 0:25:08]} 21. b3 {[%emt 0:04:49]} Bf5 {[%emt 0:02:45]} 22. Qg2 {[%emt 0:17:56]} Qh6 {[%emt 0:00:54]} 23. Nf3 {[%emt 0:00:30]} Bh3 {[%emt 0:00:30]} 24. Qh1 {[%emt 0:00:30]} Bxf1 {[%emt 0:00:30]} 25. Qxh6 {[%emt 0:00:30]} gxh6 {[%emt 0:00:30]} 26. Kxf1 {[%emt 0:00:30]} Rfc8 {[%emt 0:00:30]} 27. Nd4 {[%emt 0:00:30]} Rb4 {[%emt 0:00:30]} 28. Bf3 {[%emt 0:00:30]} Rcb8 {[%emt 0:01:42]} 29. Bc6 {[%emt 0:00:00]} Rc8 {[%emt 0:01:06]} 30. Bf3 {[%emt 0:00:00]} Rc5 {[%emt 0:04:26]} 31. Ke2 {[%emt 0:03:28]} Nd5 {[%emt 0:02:54]} 32. Kd2 {[%emt 0:00:12]} Rb8 {[%emt 0:03:19]} 33. Rh1 {[%emt 0:02:06]} Rbc8 {[%emt 0:05:11]} 34. Rxh6 {[%emt 0:03:59]} Nb4 {[%emt 0:04:10]} 35. Be4 {[%emt 0:03:05]} Rd8 {[%emt 0:03:35]} 36. a3 {[%emt 0:01:38]} Na2 {[%emt 0:00:42]} 37. Rxa6 {[%emt 0:00:33]} Nc3 {[%emt 0:00:29]} 38. Bd3 {[%emt 0:01:11]} Nb5 {[%emt 0:01:35]} 39. Nxb5 {[%emt 0:00:24]} Rxb5 {[%emt 0:00:06]} 40. Kc3 {[%emt 0:00:08]} Rbd5 {[%emt 0:01:18]} 41. Bc4 {[%emt 0:30:04]} Rd2 {[%emt 0:30:11]} 42. Rf6 {[%emt 0:00:07]} R8d7 {[%emt 0:00:53]} 43. Rxf7 {[%emt 0:00:12]} 1-0

[Event "94th FRA-ch Open B 2019"]
[Site "Chartres"]
[Date "2019.08.23"]
[Round "7.1"]
[White "Chabaud, Mathis"]
[Black "Antoine, Jean-Luc"]
[Result "0-1"]
[ECO "B23"]
[WhiteElo "1915"]
[BlackElo "1959"]
[Annotator "NA"]
[PlyCount "126"]
[EventDate "2019.08.17"]
[EventType "swiss"]
[EventCountry "FRA"]
[SourceTitle "playchess.com"]
[Source "ChessBase"]
[SourceQuality "1"]
[TimeControl "40/5400+30:1800+30"]

1. e4 {[%emt 0:00:00]} c5 {[%emt 0:00:00]} 2. Nc3 {[%emt 0:00:00]} d6 {[%emt 0:00:23]} 3. f4 {[%emt 0:00:10]} Nf6 {[%emt 0:01:59]} 4. Nf3 {[%emt 0:02:58]} e6 {[%emt 0:01:26]} 5. Bc4 {[%emt 0:09:31]} a6 {[%emt 0:01:04]} 6. a4 {[%emt 0:11:36]} d5 {[%emt 0:04:22]} 7. exd5 {[%emt 0:00:31]} exd5 {[%emt 0:00:20]} 8. Qe2+ {[%emt 0:02:18]} Be7 {[%emt 0:00:52]} 9. Ba2 {[%emt 0:01:01]} Nc6 {[%emt 0:04:54]} 10. d3 {[%emt 0:04:46]} O-O {[%emt 0:03:09]} 11. O-O {[%emt 0:01:40]} Re8 {[%emt 0:05:16]} 12. Qf2 {[%emt 0:02:48]} Nb4 {[%emt 0:14:19]} 13. Bb3 {[%emt 0:02:58]} Qc7 {[%emt 0:03:56]} 14. Ne5 {[%emt 0:08:31]} Bd6 {[%emt 0:02:20]} 15. Re1 {[%emt 0:07:03]} Bf5 {[%emt 0:14:37]} 16. Qf1 {[%emt 0:07:11]} Re7 {[%emt 0:08:03]} 17. Bd2 {[%emt 0:02:23]} Rae8 {[%emt 0:05:01]} 18. Kh1 {[%emt 0:03:17]} c4 {[%emt 0:04:14]} 19. dxc4 {[%emt 0:00:44]} Bxc2 {[%emt 0:00:59]} 20. Na2 {[%emt 0:08:45]} Bxb3 {[%emt 0:03:06]} 21. Bxb4 {[%emt 0:00:51]} Bxa2 {[%emt 0:06:25]} 22. Bxd6 {[%emt 0:00:08]} Qxd6 {[%emt 0:00:01]} 23. Rxa2 {[%emt 0:00:28]} dxc4 {[%emt 0:01:22]} 24. Qxc4 {[%emt 0:01:42]} Nd7 {[%emt 0:03:36]} 25. Raa1 {[%emt 0:02:18]} Nxe5 {[%emt 0:00:29]} 26. fxe5 {[%emt 0:00:07]} Rxe5 {[%emt 0:00:16]} 27. Rxe5 {[%emt 0:00:19]} Qxe5 {[%emt 0:00:23]} 28. Rf1 {[%emt 0:00:36]} Qe6 {[%emt 0:00:46]} 29. Qxe6 {[%emt 0:03:42]} Rxe6 {[%emt 0:00:12]} 30. Rc1 {[%emt 0:00:10]} g6 {[%emt 0:00:13]} 31. Kg1 {[%emt 0:01:04]} Rb6 {[%emt 0:01:17]} 32. Rb1 {[%emt 0:02:03]} Rb4 {[%emt 0:04:10]} 33. b3 {[%emt 0:01:11]} a5 {[%emt 0:00:43]} 34. Kf2 {[%emt 0:00:22]} f5 {[%emt 0:00:20]} 35. Ke3 {[%emt 0:01:55]} Kf7 {[%emt 0:01:14]} 36. Kd3 {[%emt 0:00:51]} Kf6 {[%emt 0:00:55]} 37. Kc3 {[%emt 0:00:16]} g5 {[%emt 0:01:38]} 38. Rd1 {[%emt 0:01:11]} Ke5 {[%emt 0:01:31]} 39. Rd7 {[%emt 0:02:46]} h5 {[%emt 0:00:30]} 40. Rh7 {[%emt 0:03:33]} h4 {[%emt 0:00:27]} 41. Rd7 {[%emt 0:10:50]} b6 {[%emt 0:00:19]} 42. Rd3 {[%emt 0:07:27]} g4 {[%emt 0:05:17]} 43. Rd8 {[%emt 0:02:15]} g3 {[%emt 0:03:12]} 44. hxg3 {[%emt 0:00:39]} hxg3 {[%emt 0:00:11]} 45. Rg8 {[%emt 0:02:36]} f4 {[%emt 0:04:38]} 46. Re8+ {[%emt 0:01:02]} Kf6 {[%emt 0:01:45]} 47. Rd8 {[%emt 0:01:22]} Re4 {[%emt 0:00:48]} 48. Rf8+ {[%emt 0:01:22]} Kg7 {[%emt 0:21:02]} 49. Rf5 {[%emt 0:00:58]} Kg6 {[%emt 0:00:00]} 50. Rb5 {[%emt 0:06:05]} Re6 {[%emt 0:00:00]} 51. Rd5 {[%emt 0:00:14]} Re3+ {[%emt 0:00:00]} 52. Kc4 {[%emt 0:00:36]} Kf6 {[%emt 0:00:00]} 53. Rd8 {[%emt 0:00:31]} Ke7 {[%emt 0:00:00]} 54. Rd4 {[%emt 0:03:04]} f3 {[%emt 0:00:00]} 55. gxf3 {[%emt 0:00:01]} Rxf3 {[%emt 0:00:00]} 56. Rg4 {[%emt 0:00:23]} Kf6 {[%emt 0:00:00]} 57. b4 {[%emt 0:00:35]} Kf5 {[%emt 0:00:00]} 58. Rxg3 {[%emt 0:03:13]} Rxg3 {[%emt 0:00:00]} 59. bxa5 {[%emt 0:00:08]} bxa5 {[%emt 0:00:00]} 60. Kb5 {[%emt 0:00:07]} Ke6 {[%emt 0:00:00]} 61. Kxa5 {[%emt 0:00:12]} Kd7 {[%emt 0:00:00]} 62. Ka6 {[%emt 0:00:51]} Kc8 {[%emt 0:00:00]} 63. a5 {[%emt 0:00:23]} Kb8 {[%emt 0:00:00]} 0-1

[Event "94th FRA-ch Open B 2019"]
[Site "Chartres"]
[Date "2019.08.23"]
[Round "7.2"]
[White "Lucbernet, Thomas"]
[Black "Le Menelec, Erwan-Son"]
[Result "1-0"]
[ECO "A62"]
[WhiteElo "1873"]
[BlackElo "1986"]
[Annotator "NA"]
[PlyCount "97"]
[EventDate "2019.08.17"]
[EventType "swiss"]
[EventCountry "FRA"]
[SourceTitle "playchess.com"]
[Source "ChessBase"]
[SourceQuality "1"]
[TimeControl "40/5400+30:1800+30"]

1. d4 {[%emt 0:00:00]} Nf6 {[%emt 0:00:00]} 2. c4 {[%emt 0:00:00]} c5 {[%emt 0:00:00]} 3. d5 {[%emt 0:00:22]} e6 {[%emt 0:00:00]} 4. Nc3 {[%emt 0:02:26]} exd5 {[%emt 0:00:00]} 5. cxd5 {[%emt 0:00:08]} d6 {[%emt 0:00:00]} 6. Nf3 {[%emt 0:02:51]} g6 {[%emt 0:00:21]} 7. g3 {[%emt 0:00:19]} Bg7 {[%emt 0:00:03]} 8. Bg2 {[%emt 0:00:08]} O-O {[%emt 0:00:29]} 9. O-O {[%emt 0:00:27]} Re8 {[%emt 0:00:25]} 10. Bf4 {[%emt 0:17:26]} a6 {[%emt 0:09:12]} 11. a4 {[%emt 0:03:39]} Nh5 {[%emt 0:00:13]} 12. Be3 {[%emt 0:06:11]} f5 {[%emt 0:17:51]} 13. Qc1 {[%emt 0:13:54]} Bf6 {[%emt 0:21:26]} 14. Bg5 {[%emt 0:05:36]} Nd7 {[%emt 0:04:24]} 15. Bxf6 {[%emt 0:02:41]} Ndxf6 {[%emt 0:00:12]} 16. Ng5 {[%emt 0:00:35]} Ng7 {[%emt 0:00:51]} 17. e4 {[%emt 0:10:15]} fxe4 {[%emt 0:08:38]} 18. Ngxe4 {[%emt 0:00:10]} Bf5 {[%emt 0:15:46]} 19. Ng5 {[%emt 0:04:12]} Qd7 {[%emt 0:08:48]} 20. a5 {[%emt 0:05:28]} h6 {[%emt 0:01:20]} 21. Nf3 {[%emt 0:03:53]} Kh7 {[%emt 0:00:03]} 22. Qd1 {[%emt 0:05:16]} Bh3 {[%emt 0:01:35]} 23. Qd3 {[%emt 0:01:05]} Ngh5 {[%emt 0:02:52]} 24. Nh4 {[%emt 0:01:20]} Rg8 {[%emt 0:00:26]} 25. Rfe1 {[%emt 0:01:11]} Bxg2 {[%emt 0:01:54]} 26. Kxg2 {[%emt 0:00:38]} Ng4 {[%emt 0:02:08]} 27. Re6 {[%emt 0:05:15]} Ne5 {[%emt 0:00:36]} 28. Qe4 {[%emt 0:00:22]} Qf7 {[%emt 0:02:24]} 29. f4 {[%emt 0:01:42]} Nf6 {[%emt 0:01:19]} 30. Rxf6 {[%emt 0:02:22]} Qxf6 {[%emt 0:00:04]} 31. fxe5 {[%emt 0:00:11]} Qxe5 {[%emt 0:00:16]} 32. Qxe5 {[%emt 0:00:31]} dxe5 {[%emt 0:00:03]} 33. Re1 {[%emt 0:00:52]} Rge8 {[%emt 0:00:39]} 34. Nf3 {[%emt 0:00:26]} Kg7 {[%emt 0:01:00]} 35. Rxe5 {[%emt 0:01:04]} Rxe5 {[%emt 0:01:18]} 36. Nxe5 {[%emt 0:00:05]} Re8 {[%emt 0:00:44]} 37. Nc4 {[%emt 0:00:39]} Kf6 {[%emt 0:00:29]} 38. Kf2 {[%emt 0:01:09]} Rc8 {[%emt 0:00:36]} 39. Nd6 {[%emt 0:01:22]} Rd8 {[%emt 0:00:33]} 40. Nde4+ {[%emt 0:01:38]} Ke5 {[%emt 0:00:10]} 41. Nxc5 {[%emt 0:30:50]} Rf8+ {[%emt 0:30:26]} 42. Ke2 {[%emt 0:01:10]} Rf7 {[%emt 0:00:32]} 43. Ke3 {[%emt 0:00:00]} g5 {[%emt 0:00:00]} 44. Nd3+ {[%emt 0:00:00]} Kd6 {[%emt 0:00:00]} 45. Kd4 {[%emt 0:00:00]} Rf1 {[%emt 0:00:00]} 46. Ne4+ {[%emt 0:00:00]} Kc7 {[%emt 0:00:00]} 47. Ke5 {[%emt 0:00:00]} Rh1 {[%emt 0:00:00]} 48. d6+ {[%emt 0:00:00]} Kd8 {[%emt 0:00:00]} 49. Ndc5 {[%emt 0:00:00]} 1-0

[Event "94th FRA-ch Open B 2019"]
[Site "Chartres"]
[Date "2019.08.23"]
[Round "7.3"]
[White "Delin, Valere"]
[Black "Navrotescu, Vlad-Andrei"]
[Result "1-0"]
[ECO "B78"]
[WhiteElo "1866"]
[BlackElo "1943"]
[Annotator "NA"]
[PlyCount "51"]
[EventDate "2019.08.17"]
[EventType "swiss"]
[EventCountry "FRA"]
[SourceTitle "playchess.com"]
[Source "ChessBase"]
[SourceQuality "1"]
[TimeControl "40/5400+30:1800+30"]

1. e4 {[%emt 0:05:01]} c5 {[%emt 0:00:00]} 2. Nf3 {[%emt 0:00:09]} d6 {[%emt 0:00:00]} 3. d4 {[%emt 0:00:03]} cxd4 {[%emt 0:00:00]} 4. Nxd4 {[%emt 0:00:04]} Nf6 {[%emt 0:00:00]} 5. Nc3 {[%emt 0:00:07]} g6 {[%emt 0:00:00]} 6. Be3 {[%emt 0:00:15]} Bg7 {[%emt 0:00:03]} 7. Bc4 {[%emt 0:01:43]} O-O {[%emt 0:00:06]} 8. f3 {[%emt 0:00:27]} Nc6 {[%emt 0:00:14]} 9. Bb3 {[%emt 0:00:21]} Bd7 {[%emt 0:00:14]} 10. Qd2 {[%emt 0:00:32]} Rc8 {[%emt 0:00:06]} 11. O-O-O {[%emt 0:01:24]} Nxd4 {[%emt 0:00:10]} 12. Bxd4 {[%emt 0:00:33]} b5 {[%emt 0:00:07]} 13. e5 {[%emt 0:08:16]} dxe5 {[%emt 0:10:14]} 14. Bxe5 {[%emt 0:00:23]} Bc6 {[%emt 1:25:46]} 15. Qg5 {[%emt 0:19:20]} Qb6 {[%emt 0:00:00]} 16. h4 {[%emt 0:15:03]} b4 {[%emt 0:00:00]} 17. Na4 {[%emt 0:05:49]} Bxa4 {[%emt 0:00:00]} 18. Bxa4 {[%emt 0:00:59]} h6 {[%emt 0:00:00]} 19. Qd2 {[%emt 0:06:58]} Qa5 {[%emt 0:00:00]} 20. Bxf6 {[%emt 0:00:10]} Qxa4 {[%emt 0:00:00]} 21. Bxg7 {[%emt 0:03:28]} Qxa2 {[%emt 0:00:00]} 22. Qxh6 {[%emt 0:01:08]} f6 {[%emt 0:00:00]} 23. Bxf8 {[%emt 0:00:14]} Rxf8 {[%emt 0:00:00]} 24. Qxg6+ {[%emt 0:00:09]} Kh8 {[%emt 0:00:00]} 25. Qh5+ {[%emt 0:00:14]} Kg8 {[%emt 0:00:00]} 26. Qd5+ {[%emt 0:00:04]} 1-0

[Event "94th FRA-ch Open B 2019"]
[Site "Chartres"]
[Date "2019.08.23"]
[Round "7.4"]
[White "Bosc, Gabriel"]
[Black "Ragneau, Freddy"]
[Result "1/2-1/2"]
[ECO "A03"]
[WhiteElo "1893"]
[BlackElo "1814"]
[Annotator "NA"]
[PlyCount "166"]
[EventDate "2019.08.17"]
[EventType "swiss"]
[EventCountry "FRA"]
[SourceTitle "playchess.com"]
[Source "ChessBase"]
[SourceQuality "1"]
[TimeControl "40/5400+30:1800+30"]

1. f4 {[%emt 0:00:00]} d5 {[%emt 0:00:19]} 2. b3 {[%emt 0:00:00]} Nf6 {[%emt 0:01:55]} 3. Bb2 {[%emt 0:00:08]} c5 {[%emt 0:01:09]} 4. Nf3 {[%emt 0:00:57]} Nc6 {[%emt 0:01:57]} 5. e3 {[%emt 0:00:06]} a6 {[%emt 0:11:12]} 6. a4 {[%emt 0:01:08]} h6 {[%emt 0:04:10]} 7. Be2 {[%emt 0:01:01]} Bf5 {[%emt 0:03:07]} 8. O-O {[%emt 0:00:20]} e6 {[%emt 0:00:49]} 9. Ne5 {[%emt 0:01:23]} Bh7 {[%emt 0:07:57]} 10. Nxc6 {[%emt 0:02:41]} bxc6 {[%emt 0:00:14]} 11. d3 {[%emt 0:00:37]} Bd6 {[%emt 0:07:32]} 12. Nd2 {[%emt 0:00:36]} Qc7 {[%emt 0:00:57]} 13. Nf3 {[%emt 0:00:17]} d4 {[%emt 0:03:54]} 14. exd4 {[%emt 0:01:59]} Bxf4 {[%emt 0:01:48]} 15. g3 {[%emt 0:10:58]} Be3+ {[%emt 0:07:33]} 16. Kg2 {[%emt 0:02:57]} cxd4 {[%emt 0:11:30]} 17. Nxd4 {[%emt 0:08:08]} O-O {[%emt 0:02:43]} 18. Bf3 {[%emt 0:06:07]} Rac8 {[%emt 0:05:59]} 19. Rb1 {[%emt 0:26:59]} e5 {[%emt 0:05:03]} 20. Ne2 {[%emt 0:06:43]} Rfe8 {[%emt 0:01:17]} 21. Nc3 {[%emt 0:03:05]} Rcd8 {[%emt 0:03:28]} 22. Qe2 {[%emt 0:06:18]} Bd4 {[%emt 0:02:18]} 23. Be4 {[%emt 0:02:42]} Bxe4+ {[%emt 0:01:26]} 24. dxe4 {[%emt 0:00:26]} Qa5 {[%emt 0:01:12]} 25. Qf3 {[%emt 0:04:58]} Rd7 {[%emt 0:01:56]} 26. Rbd1 {[%emt 0:02:17]} Red8 {[%emt 0:01:36]} 27. Rd3 {[%emt 0:00:47]} Qb4 {[%emt 0:02:17]} 28. Rfd1 {[%emt 0:04:16]} Qb7 {[%emt 0:01:27]} 29. h3 {[%emt 0:00:33]} c5 {[%emt 0:00:20]} 30. Ba1 {[%emt 0:00:46]} c4 {[%emt 0:01:36]} 31. bxc4 {[%emt 0:00:14]} Qb4 {[%emt 0:01:00]} 32. Nd5 {[%emt 0:00:24]} Nxd5 {[%emt 0:01:25]} 33. cxd5 {[%emt 0:00:09]} Qxa4 {[%emt 0:01:42]} 34. Bxd4 {[%emt 0:00:15]} exd4 {[%emt 0:00:18]} 35. Rxd4 {[%emt 0:00:24]} Qxc2+ {[%emt 0:00:18]} 36. R1d2 {[%emt 0:00:10]} Qc5 {[%emt 0:00:35]} 37. Qb3 {[%emt 0:01:36]} Qd6 {[%emt 0:01:40]} 38. Rc4 {[%emt 0:02:32]} Qe5 {[%emt 0:00:45]} 39. g4 {[%emt 0:01:56]} h5 {[%emt 0:00:43]} 40. Qg3 {[%emt 0:00:40]} Qg5 {[%emt 0:01:25]} 41. Ra2 {[%emt 0:31:12]} a5 {[%emt 0:31:01]} 42. Re2 {[%emt 0:01:44]} Re8 {[%emt 0:00:00]} 43. Rec2 {[%emt 0:00:00]} h4 {[%emt 0:00:00]} 44. Qf3 {[%emt 0:00:00]} Qe5 {[%emt 0:00:00]} 45. Qf2 {[%emt 0:00:00]} g5 {[%emt 0:00:00]} 46. Qf3 {[%emt 0:00:00]} Rd6 {[%emt 0:00:00]} 47. Rf2 {[%emt 0:00:00]} Re7 {[%emt 0:00:00]} 48. Kh1 {[%emt 0:00:00]} Rb6 {[%emt 0:00:00]} 49. Qa3 {[%emt 0:00:00]} Kh7 {[%emt 0:00:00]} 50. Kg2 {[%emt 0:00:00]} Kg7 {[%emt 0:00:00]} 51. Rfc2 {[%emt 0:00:56]} Reb7 {[%emt 0:00:00]} 52. Qc3 {[%emt 0:02:41]} Qxc3 {[%emt 0:00:00]} 53. R4xc3 {[%emt 0:01:04]} Rb3 {[%emt 0:00:00]} 54. d6 {[%emt 0:01:05]} Rxc3 {[%emt 0:02:16]} 55. Rxc3 {[%emt 0:00:03]} Kf6 {[%emt 0:00:22]} 56. Rc5 {[%emt 0:01:07]} a4 {[%emt 0:00:52]} 57. Ra5 {[%emt 0:00:10]} Rb2+ {[%emt 0:00:51]} 58. Kf1 {[%emt 0:00:21]} Rb4 {[%emt 0:01:14]} 59. Rd5 {[%emt 0:00:35]} Rb8 {[%emt 0:01:12]} 60. Ra5 {[%emt 0:00:03]} Ke6 {[%emt 0:01:56]} 61. Rxa4 {[%emt 0:00:19]} Kxd6 {[%emt 0:00:24]} 62. Ra5 {[%emt 0:01:01]} f6 {[%emt 0:00:16]} 63. Rd5+ {[%emt 0:01:00]} Ke6 {[%emt 0:00:14]} 64. Ke2 {[%emt 0:00:30]} Rb4 {[%emt 0:00:50]} 65. Kf3 {[%emt 0:00:35]} Rb3+ {[%emt 0:00:20]} 66. Kg2 {[%emt 0:00:18]} Rg3+ {[%emt 0:00:14]} 67. Kh2 {[%emt 0:00:06]} Re3 {[%emt 0:00:10]} 68. Ra5 {[%emt 0:00:23]} Rxe4 {[%emt 0:00:20]} 69. Kg2 {[%emt 0:00:38]} Re3 {[%emt 0:00:33]} 70. Rb5 {[%emt 0:00:13]} Rg3+ {[%emt 0:00:23]} 71. Kh2 {[%emt 0:00:04]} Rd3 {[%emt 0:00:56]} 72. Kg2 {[%emt 0:00:50]} Rd5 {[%emt 0:00:19]} 73. Rb2 {[%emt 0:00:36]} f5 {[%emt 0:00:45]} 74. gxf5+ {[%emt 0:00:27]} Kxf5 {[%emt 0:00:15]} 75. Rf2+ {[%emt 0:00:33]} Ke4 {[%emt 0:00:13]} 76. Re2+ {[%emt 0:00:32]} Kf4 {[%emt 0:00:11]} 77. Rf2+ {[%emt 0:00:21]} Ke3 {[%emt 0:00:09]} 78. Rf3+ {[%emt 0:00:23]} Ke4 {[%emt 0:00:09]} 79. Rf2 {[%emt 0:00:29]} Rd3 {[%emt 0:00:31]} 80. Re2+ {[%emt 0:00:57]} Kd4 {[%emt 0:02:06]} 81. Rf2 {[%emt 0:00:32]} Rg3+ {[%emt 0:00:31]} 82. Kh2 {[%emt 0:00:09]} Ke3 {[%emt 0:00:15]} 83. Ra2 {[%emt 0:00:16]} Rf3 {[%emt 0:01:29]} 1/2-1/2